Cogmind - Beta 13 @@@ ROGUE MODE // 2024.04.21 @ 17:43:02 Player: Waste Result: Destroyed by C3-8TB(R) with Subdweller Laser Performance ------------- Evolutions (0) 0 Regions Visited (2) 400 Robots Destroyed (29) 145 Value Destroyed (674) 674 Prototype IDs (0) 0 Alien Tech Used (0) 0 Bonus (0) 0 TOTAL SCORE: 1219 Bonus ------- None Cogmind --------- Core Integrity 0/250 Matter 100/300 Energy 210/250 System Corruption 0% Temperature Hot (227) Movement Treading (160) Location -10/Subcaves Parts ------- > --- POWER (1) -------- Ion Engine > --- PROPULSION (2) --- Light Treads Light Treads > --- UTILITY (2) ------ (None) > --- WEAPON (2) ------- Beam Cannon Subdweller Beam Cannon > --- INVENTORY (5) ---- Cooling System High-capacity Storage Unit Subdweller Beam Cannon Battle Rifle Mini Grenade Launcher Peak State ------------ > --- POWER ------------ Ion Engine > --- PROPULSION ------- Light Treads Light Treads > --- UTILITY ---------- High-capacity Storage Unit Makeshift Kinetic Plating > --- WEAPON ----------- Subdweller Beam Cannon Improved Light Cannon > --- INVENTORY -------- Light Ion Engine Light Treads Cooling System Cooling System Beam Rifle Beam Rifle Beam Rifle Beam Rifle Beam Cannon Assault Rifle Battle Rifle Improved Light Cannon Mini Grenade Launcher Mini Grenade Launcher [Rating: 14] Favorites ----------- Power Ion Engine Engine Ion Engine Propulsion Light Treads Treads Light Treads Leg Aluminum Leg Utility High-capacity Storage Unit Storage High-capacity Storage Unit Protection Makeshift Kinetic Plating Weapon Subdweller Beam Cannon Energy Gun Small Laser Energy Cannon Subdweller Beam Cannon Ballistic Gun Light Assault Rifle Ballistic Cannon Improved Light Cannon Launcher Mini Grenade Launcher Build | -11 -10 -10 ------- Run | Yrd Mat Sub Slots Evolved . | . . . Power . | . . . Propulsion . | . . . Utility . | . . . Weapon . | . . . Parts Attached 24 | 1 5 18 Power 3 | . 1 2 Engine 3 | . 1 2 Core . | . . . Reactor . | . . . Propulsion 5 | . 1 4 Treads 3 | . . 3 Leg 2 | . 1 1 Wheel . | . . . Hover . | . . . Flight . | . . . Utility 4 | . 1 3 Device . | . . . Storage 1 | . 1 . Processor . | . . . Hackware . | . . . Protection 3 | . . 3 Artifact . | . . . Weapon 12 | 1 2 9 Energy Gun . | . . . Energy Cannon 4 | . . 4 Ballistic Gun 2 | 1 . 1 Ballistic Cannon 4 | . . 4 Launcher 2 | . 2 . Special Weapon . | . . . Impact Weapon . | . . . Slashing Weapon . | . . . Piercing Weapon . | . . . Special Melee Weapon . | . . . Unidentified Prototypes . | . . . Parts Lost 8 | . . 8 Power 2 | . . 2 Propulsion 2 | . . 2 Utility 1 | . . 1 Weapon 3 | . . 3 Highest Loss Streak 4 | . . 4 To Critical Strikes . | . . . Average Slot Usage (%) 90 | . 85 93 Engine 13 | . 14 13 Treads 16 | . . 23 Leg 11 | . 28 4 Storage 12 | . 14 12 Protection 6 | . . 9 Energy Cannon 13 | . . 19 Ballistic Gun 4 | . 14 . Ballistic Cannon 3 | . . 5 Launcher 6 | . 13 2 Naked Turns . | . . . Heaviest Build 68 | 10 47 68 Greatest Support 40 | 20 20 40 Greatest Overweight (x) 2 | . 2 2 Average Overweight (x) 1 | . 1 . Largest Inventory Capacity 20 | 8 20 20 Average Capacity 18 | 8 18 18 Most Carried 20 | 6 20 20 Average Carried 14 | 6 14 14 Final Capacity 20 | 8 20 5 Final Carried 19 | 6 19 5 Class Distribution -------------------- 92% | Mutant 7% | Subdweller-Mutant Dominant Class ---------------- Mutant | -10/Materials Mutant | -10/Subcaves Resources | -11 -10 -10 ----------- Run | Yrd Mat Sub Matter Collected 556 | 200 156 200 Remotely . | . . . Salvage Created 602 | . 431 171 Parts 51 | . 42 9 Haulers Intercepted 2 | . 2 . Recyclers Shooed 1 | . 1 . Parts Field Recycled . | . . . Retrieved Matter . | . . . Parts Self-Destructed 5 | . . 5 Prevented . | . . . Kills | -11 -10 -10 ------- Run | Yrd Mat Sub Combat Hostiles Destroyed 24 | . 17 7 Cannons 7 | . . 7 AOE 17 | . 17 . Classes Destroyed 6 | . 5 1 Worker 2 | . 2 . Hauler 2 | . 2 . Watcher 1 | . 1 . Swarmer 10 | . 9 1 Grunt 8 | . 8 . Subdweller 6 | . . 6 Best Kill Streak 6 | . 6 2 Combat Bots Only 5 | . 5 2 Max Kills in Single Turn 4 | . 4 1 Gunslinging . | . . . Exploded 3 | . 3 . Melee . | . . . Uniques/NPCs Destroyed . | . . . Combat | -11 -10 -10 -------- Run | Yrd Mat Sub Hostile Shots Fired 106 | . 24 82 Missed 29 | . 11 18 Damage Taken 1536 | . 130 1406 Core 268 | . 12 256 Absorbed by Shields . | . . . Ignored by Resistances 5 | . . 5 Core Remaining (%) 100 | 100 . . Volleys Fired 78 | . 11 67 Largest 2 | . 1 2 Hottest 160 | . 30 160 Shots Fired 121 | . 11 110 Gun 27 | . . 27 Cannon 83 | . . 83 Launcher 11 | . 11 . Special . | . . . Kinetic 76 | . . 76 Thermal 34 | . . 34 Explosive 11 | . 11 . Electromagnetic . | . . . Robot Hit Streak 13 | . 1 13 Robot Miss Streak 3 | . 2 3 Penetration Max . | . . . Secondary Targets . | . . . Shots Hit Robots 59 | . 3 56 Core Hits 35 | . 23 12 Critical Kills . | . . . Critical Parts Destroyed . | . . . Critical Strikes 2 | . . 2 Blast 2 | . . 2 Melee Attacks . | . . . Impact . | . . . Slashing . | . . . Piercing . | . . . Sneak Attacks . | . . . Combat Hostiles . | . . . Follow-up Attacks . | . . . Damage Inflicted 2198 | . 1065 1133 Guns 245 | . . 245 Cannons 888 | . . 888 Explosions 1054 | . 1054 . Melee . | . . . Ramming 11 | . 11 . Kinetic 711 | . . 711 Thermal 422 | . . 422 Explosive 1054 | . 1054 . Electromagnetic . | . . . Impact . | . . . Slashing . | . . . Piercing . | . . . Highest Corruption . | . . . Average Corruption . | . . . Corruption Purged . | . . . Corruption Blocked . | . . . Overload Shots . | . . . Overflow Damage 51 | . 51 . Projectiles . | . . . Explosions 51 | . 51 . Melee . | . . . Knockbacks 10 | . . 10 Impact . | . . . Kinetic 9 | . . 9 Secondary 1 | . . 1 Self-Inflicted Damage 22 | . 22 . Shots 1 | . 1 . Rammed . | . . . Targets Rammed 3 | . 3 . Kicked 3 | . 3 . Crushed . | . . . Highest Temperature 283 | . 1 283 Average Temperature 104 | . 1 107 Received Heat Transfer 846 | . 18 828 Effects 2 | . . 2 Energy Bleed 2 | . . 2 Siege Activations . | . . . Robots Corrupted . | . . . Combat Hostiles . | . . . Parts Fried . | . . . Impact Corruptions . | . . . Robots Melted . | . . . Combat Hostiles . | . . . Parts Melted 1 | . . 1 Heat Transferred 592 | . . 592 Parts Sabotaged . | . . . Parts Stolen . | . . . Parts Stripped . | . . . Power Chain Reactions . | . . . Alert | -11 -10 -10 ------- Run | Yrd Mat Sub Peak Influence 392 | . 392 . Initial . | . . . Average 260 | . 260 . Maximum Alert Level 1 | . 1 . Low Security (%) 21 | 100 21 . Level 1 78 | . 78 . Level 2 . | . . . Level 3 . | . . . Level 4 . | . . . Level 5 . | . . . High Security . | . . . Max Security . | . . . Squads Dispatched 3 | . 3 . Investigation 1 | . 1 . Extermination . | . . . Reinforcement 2 | . 2 . Assault . | . . . Garrison . | . . . Intercept . | . . . Searches Triggered . | . . . Construction Impeded . | . . . Haulers Reinforced . | . . . Active Scanning Responses . | . . . Cargo Convoy Interrupts . | . . . Stealth | -11 -10 -10 --------- Run | Yrd Mat Sub Distress Signals 2 | . 2 . Communications Jammed . | . . . Distress Signals . | . . . Times Spotted 39 | . 25 14 Peak Tracking Total 5 | . 5 4 Tactical Retreats 2 | . . 2 Traps | -11 -10 -10 ------- Run | Yrd Mat Sub Traps Triggered 1 | . 1 . Indirectly . | . . . Trap Hack Attempts . | . . . Triggered . | . . . Disarmed . | . . . Reprogrammed . | . . . Reused . | . . . Traps Extracted . | . . . Installed . | . . . Triggered 1 | . . 1 Machines | -11 -10 -10 ---------- Run | Yrd Mat Sub Machines Disabled 4 | . 4 . Max in Single Turn 1 | . 1 . Machines Repaired . | . . . Machines Dismantled . | . . . Machines Sabotaged . | . . . Overloaded Fab Kills . | . . . Hacking | -11 -10 -10 --------- Run | Yrd Mat Sub Machines Accessed 5 | . 4 1 Terminals 4 | . 4 . Fabricators . | . . . Repair Stations . | . . . Recycling Units . | . . . Scanalyzers . | . . . Garrison Access . | . . . Total Hacks 9 | . 7 2 Successful 3 | . 1 2 Failed 6 | . 6 . Catastrophic 1 | . 1 . Database Lockouts . | . . . Manual 7 | . 7 . Terminals 7 | . 7 . Fabricators . | . . . Repair Stations . | . . . Recycling Units . | . . . Scanalyzers . | . . . Garrison Access . | . . . Terminal Hacks 3 | . 1 2 Record 2 | . . 2 Robot Analysis 1 | . 1 . Fabricator Hacks . | . . . Repair Station Hacks . | . . . Recycling Unit Hacks . | . . . Scanalyzer . | . . . Garrison Access Hacks . | . . . Unauthorized Hacks . | . . . Terminals . | . . . Fabricators . | . . . Repair Stations . | . . . Recycling Units . | . . . Scanalyzers . | . . . Garrison Access . | . . . Data Cores Recovered . | . . . Used . | . . . Hacking Detections 4 | . 4 . Full Trace Events . | . . . Feedback Events . | . . . Feedback Blocked . | . . . Robot Schematics Acquired . | . . . Robots Built . | . . . Authchips . | . . . Time . | . . . Total Robot Build Rating . | . . . Part Schematics Acquired . | . . . Parts Built . | . . . Authchips . | . . . Time . | . . . Total Part Build Rating . | . . . Parts Repaired . | . . . Time . | . . . Parts Recycled . | . . . Recycled Matter . | . . . Retrieved Matter . | . . . Retrieved Components . | . . . Parts Scanalyzed . | . . . Part Schematics Acquired . | . . . Parts Damaged . | . . . Bothacking | -11 -10 -10 ------------ Run | Yrd Mat Sub Used RIF Installer . | . . . Robots Hacked . | . . . Non-combat . | . . . Combat . | . . . Robot Hacks Applied . | . . . Relay Couplers Released . | . . . Fabnet Peak Effective % . | . . . Robots Rewired . | . . . Allies Hacked . | . . . Hacks Repelled . | . . . Allies | -11 -10 -10 -------- Run | Yrd Mat Sub Total Allies . | . . . Largest Group . | . . . Highest-Rated Group . | . . . Highest-Rated Ally . | . . . Total Orders . | . . . Ally Attacks . | . . . Total Damage . | . . . Kills . | . . . Allies Corrupted . | . . . Allies Melted . | . . . Intel | -11 -10 -10 ------- Run | Yrd Mat Sub Robot Analysis Total 1 | . 1 . Derelict Logs Recovered 1 | . . 1 Drone Launches . | . . . Drone Recoveries . | . . . Exploration | -11 -10 -10 ------------- Run | Yrd Mat Sub Turns Passed 4021 | 2 1274 2745 Spaces Moved 1508 | 1 405 1102 Core . | . . . Treads 977 | . . 977 Legs 531 | 1 405 125 Wheels . | . . . Hover . | . . . Flight . | . . . Fastest Speed 120 | 120 120 160 Average Speed 224 | 120 215 228 Slowest Speed 260 | 120 260 260 Overloaded Moves . | . . . Propulsion Burnouts . | . . . Robots Hopped . | . . . Cave-ins Triggered . | . . . Exploration Rate (%) 37 | 2 66 44 Regions Visited 2 Branch Regions 1 Pre-discovered Areas 1 | . . 1 Known Exits Taken . | . . . Unknown Exits Taken 2 | 1 1 . Scrap Searched 2 | . . 2 Spaces Dug . | . . . Terrain Destroyed 73 | . 68 5 Melee . | . . . Projectile 5 | . . 5 AOE 68 | . 68 . Terrain Rammed . | . . . Walls Destroyed . | . . . Machines Disabled . | . . . Actions | -11 -10 -10 --------- Run | Yrd Mat Sub Total 2016 | 1 797 1218 Wait 362 | . 349 13 Move 1506 | . 404 1102 Hop . | . . . Pick Up 22 | . 17 5 Fast Attach 7 | . 1 6 Attach 8 | . . 8 Detach 3 | . 1 2 Swap 9 | 1 4 4 Drop 16 | . 7 9 Fire 78 | . 11 67 Melee . | . . . Ram . | . . . Kick 3 | . 3 . Crush . | . . . Escape Stasis . | . . . Rewire . | . . . Trap . | . . . Miscellaneous 2 | . . 2 Route ------- -11/Scrapyard -10/Materials (discovered 3 exits: [*Mat] / [*Min] / *Sub) -10/Subcaves (discovered 3 exits: [*Mat x2] / [*Rec]) History --------- Turn | Location | Event 3 | -11/Scrapyard | Discovered new exit (range 0) 3 | -11/Scrapyard | Entered Materials 65 | -10/Materials | Discovered new exit (range 15) 306 | -10/Materials | Build established: Mutant 642 | -10/Materials | Discovered new exit (range 11) 1245 | -10/Materials | Discovered new exit (range 5) 1277 | -10/Materials | Entered Subcaves 1380 | -10/Subcaves | Learned 8 Materials zone layouts 1457 | -10/Subcaves | Shifting Twisted Machinery released Sub. Laser 1457 | -10/Subcaves | Shifting Twisted Machinery released Sub. Machine Gun 1653 | -10/Subcaves | Lost 4 parts (1p1n2w) 1713 | -10/Subcaves | Core integrity fell below 50% 1743 | -10/Subcaves | Lost 3 parts (1p1n1w) 2037 | -10/Subcaves | Shifting Twisted Machinery released Mak. Kinetic Plating 2049 | -10/Subcaves | Learned location of Zion (-6) 2049 | -10/Subcaves | Met a Zionite searching for "candidates" 2402 | -10/Subcaves | Discovered new exit (range 7) 2438 | -10/Subcaves | A swath of the cavern ceiling suddenly collapsed 2513 | -10/Subcaves | Discovered new exit (range 10) 3025 | -10/Subcaves | Visited Clippyterm 3488 | -10/Subcaves | Discovered new exit (range 15) 3669 | -10/Subcaves | Core integrity fell below 20% 3991 | -10/Subcaves | Build established: Subdweller-Mutant 4022 | -10/Subcaves | Destroyed by C3-8TB(R) with Subdweller Laser Last Messages --------------- 03783_ Scrap Shield Fragment affixed to Scrap Shield (+12). 03838_ UR-ACJ(u) builds Twisted Machinery. 03840_ N0-3QB(u) deconstructs Twisted Machinery. 03842_ UR-ACJ(u) builds Twisted Machinery. 03842_ N0-3QB(u) deconstructs Twisted Machinery. 03844_ UR-ACJ(u) builds Twisted Machinery. 03844_ N0-3QB(u) deconstructs Twisted Machinery. 03846_ UR-ACJ(u) builds Twisted Machinery. 03846_ N0-3QB(u) deconstructs Twisted Machinery. 03848_ UR-ACJ(u) builds Twisted Machinery. 03848_ N0-3QB(u) deconstructs Twisted Machinery. 03850_ UR-ACJ(u) builds Twisted Machinery. 03850_ N0-3QB(u) deconstructs Twisted Machinery. 03852_ UR-ACJ(u) builds Twisted Machinery. 03852_ N0-3QB(u) deconstructs Twisted Machinery. 03856_ UR-ACJ(u) builds Twisted Machinery. 04003_ Sub. Beam Cannon shoots sparks and powers down. 04014_ Scrap Shield destroyed. 04016_ Destroyed Scrap Shield. 04019_ 3F-EJE(R) destroyed. Map ----- +----------------------------------------------------+ | ?????????????????????????????????????????????????? | | ?????????????????????????????????????????????????? | | ?????????????????????????????????????????????????# | | ????????????????????????????????????????????????# | | ?????????????????????????????###???????????????## | | ????????????????????????????## ##?????????????#"" | | ????????????????????????????# #?????????????#"" | | ?????????????????????????????# ##??????????### | | ??????????????????????????????# ##????????## | | ??????????????? ???????????## ########## """" | | ?????????????? ?????????### # ## """" | | ??????????????? ????????# ## # | | ???????????????? ###?????# # ### # ### " | | ????????????????? #????# ??## ###?# # " " | | ?????????????????? #??## ??## ##??# # ""#"## | | ??????????????????# ### ? # #### "##### | | ???????????? ?????# # ## ###??## | | ??????????# ????# ## # # #???# | | ??????????# ### ????# ### #???# | | ?????????# ???## ### #??## | | ?????????# #?### #?## #?# | | ??????????# ### ## ##########?# | | ????????????# ## ### ##??????# | | ????????????????????# ####[ #?## ##??##?# | | ????????????????????###?#;%R #??## #?## ### | | ????????????????????# ###@& ##???## ### | | ????????????????????# ###???## ## | | ????????????????????## ##???# ## # | | ?????????????????????###### ##### ## ?## | | ??????????????????????????# ## ## #????# | | ??????????????????????????###### #????# | | ??????????????????????????????## # # # | | ??????????????????????????????# | | ??????????????????????????????# #### | | ??????????????????????????????## ##??## ## ## | | ???????????????????????????????###????## ######## | | ???????????????????????????????????????####??????# | | ?????????????????????????????????????????????????? | | ?????????????????????????????????????????????????? | | ?????????????????????????????????????????????????? | | ?????????????????????????????????????????????????? | | ?????????????????????????????????????????????????? | | ?????????????????????????????????????????????????? | | ?????????????????????????????????????????????????? | | ?????????????????????????????????????????????????? | | ?????????????????????????????????????????????????? | | ?????????????????????????????????????????????????? | | ?????????????????????????????????????????????????? | | ?????????????????????????????????????????????????? | | ?????????????????????????????????????????????????? | +----------------------------------------------------+ Best States ------------- Heat Dissipation 25 Energy Generation 15 Energy Capacity 250 Matter Stores 300 Matter Capacity 300 Sight Range 16 Terrain Scan Density 10 Armor Coverage 800 Resistance: KI 10 Evasion (%) 55 Recoil Reduction 2 Item Schematics ----------------- None Robot Schematics ------------------ None Fabricated ------------ Nothing Alien Tech Used ----------------- None Achievements -------------- None Challenges ------------ None Game ------ Seed ReactionElectronShredder Manual? 0 Play Time 00:13:30 Cumulative 199.3 hours Start 2024.04.21 @ 17:31:13 End 2024.04.21 @ 17:43:02 Sessions 1 Manual Loads 0 Difficulty Rogue Special Mode None Game No. 261 Rogue 261 Adventurer 0 Explorer 0 Win Type - Total 6 Types 2/1/0/1/1/0/0/1/0 Lore% 68 Gallery% 76 Achievement% 67 Wizard Run 0 Options --------- Layout 0 ASCII 0 Keyboard 0 Movement Numpad Keybinds 0 Fullscreen 1 Font 18/SmallcapsGlow Map View 76x50 Zoom Use 0% Tactical HUD 1 Map Filters NONE Filters NONE Steam 1 RUN: 2addda60-31f7-42a9-967c-3898788c9534